Cogmind - Beta 14 @@@ ROGUE MODE // 2024.10.22 @ 16:37:42 Player: WazdakkaGutsmek Result: Destroyed by as-45413 with Assembled Heavy Rifle Performance ------------- Evolutions (0) 0 Regions Visited (2) 400 Robots Destroyed (3) 15 Value Destroyed (121) 121 Prototype IDs (0) 0 Alien Tech Used (0) 0 Bonus (60) 60 TOTAL SCORE: 596 Bonus ------- Follower Combat Kills 60 Cogmind --------- Core Integrity 0/250 Matter 270/300 Energy 119/125 System Corruption 0% Temperature Cool (14) Movement Treading (160) Location -10/Mines Parts ------- > --- POWER (1) -------- Light Ion Engine > --- PROPULSION (2) --- Light Treads Light Treads > --- UTILITY (2) ------ Large Storage Unit Improved Light Armor Plating > --- WEAPON (2) ------- EM Pulse Gun Mini Grenade Launcher > --- INVENTORY (15) --- Ion Engine Compact Wheel Compact Wheel Medium Matter Pod (100) Peak State ------------ > --- POWER ------------ Light Ion Engine > --- PROPULSION ------- Light Treads Light Treads > --- UTILITY ---------- Large Storage Unit Improved Light Armor Plating > --- WEAPON ----------- EM Pulse Gun Mini Grenade Launcher > --- INVENTORY -------- Ion Engine Compact Wheel Compact Wheel Medium Matter Pod [Rating: 10] Favorites ----------- Power Light Ion Engine Engine Light Ion Engine Propulsion Aluminum Leg Treads Light Treads Leg Aluminum Leg Utility Large Storage Unit Storage Large Storage Unit Protection Improved Light Armor Plating Weapon Medium Laser Energy Gun Medium Laser Ballistic Gun Assault Rifle Launcher Mini Grenade Launcher Build | -11 -10 -10 ------- Run | Yrd Mat Min Slots Evolved . | . . . Power . | . . . Propulsion . | . . . Utility . | . . . Weapon . | . . . Parts Attached 7 | . 2 5 Power . | . . . Engine . | . . . Core . | . . . Reactor . | . . . Propulsion 2 | . . 2 Treads 2 | . . 2 Leg . | . . . Wheel . | . . . Hover . | . . . Flight . | . . . Utility 2 | . 1 1 Device . | . . . Storage 1 | . 1 . Processor . | . . . Hackware . | . . . Protection 1 | . . 1 Artifact . | . . . Weapon 3 | . 1 2 Energy Gun 1 | . . 1 Energy Cannon . | . . . Ballistic Gun 1 | . 1 . Ballistic Cannon . | . . . Launcher 1 | . . 1 Special Weapon . | . . . Impact Weapon . | . . . Slashing Weapon . | . . . Piercing Weapon . | . . . Special Melee Weapon . | . . . Unidentified Prototypes . | . . . Parts Lost 4 | . . 4 Power . | . . . Propulsion 2 | . . 2 Utility . | . . . Weapon 2 | . . 2 Highest Loss Streak 4 | . . 4 To Critical Strikes . | . . . Average Slot Usage (%) 84 | . 85 83 Engine 14 | . 14 14 Treads 4 | . . 6 Leg 23 | . 28 20 Storage 14 | . 14 14 Protection 1 | . . 2 Energy Gun 14 | . 16 13 Ballistic Gun 10 | . 11 10 Peak Build Rating 10 | 6 7 10 Average Rating 6 | 6 6 6 On Entrance 6 | 6 6 6 Naked Turns . | . . . Heaviest Build 29 | 11 27 29 Greatest Support 40 | 20 20 40 Greatest Overweight (x) 1 | . 1 1 Average Overweight (x) . | . . . Largest Inventory Capacity 15 | 8 15 15 Average Capacity 13 | 8 11 15 Most Carried 7 | 6 7 7 Average Carried 6 | 6 6 6 Final Capacity 15 | 8 15 15 Final Carried 7 | 6 7 4 Class Distribution -------------------- 100% | Mutant Dominant Class ---------------- Mutant | -10/Materials Mutant | -10/Mines Resources | -11 -10 -10 ----------- Run | Yrd Mat Min Matter Collected 379 | 200 83 96 Remotely . | . . . Salvage Created 119 | . 83 36 Parts 4 | . 4 . Haulers Intercepted . | . . . Recyclers Shooed . | . . . Parts Field Recycled . | . . . Retrieved Matter . | . . . Parts Self-Destructed . | . . . Prevented . | . . . Kills | -11 -10 -10 ------- Run | Yrd Mat Min Combat Hostiles Destroyed 4 | . 2 2 Guns 3 | . 2 1 AOE 1 | . . 1 Classes Destroyed 3 | . 1 2 Grunt 2 | . 2 . Demolisher 1 | . . 1 Assembled 1 | . . 1 Best Kill Streak 2 | . 2 1 Combat Bots Only 2 | . 2 1 Max Kills in Single Turn 1 | . 1 1 Gunslinging . | . . . Exploded 1 | . . 1 Melee . | . . . Uniques/NPCs Destroyed . | . . . Combat | -11 -10 -10 -------- Run | Yrd Mat Min Hostile Shots Fired 24 | . 6 18 Missed 4 | . 1 3 Damage Taken 699 | . 50 649 Core 255 | . 20 235 Absorbed by Shields . | . . . Core Remaining (%) 100 | 100 . . Volleys Fired 25 | . 6 19 Largest 2 | . 2 2 Hottest 70 | . 70 70 Shots Fired 39 | . 12 27 Gun 37 | . 12 25 Cannon . | . . . Launcher 2 | . . 2 Special . | . . . Kinetic 14 | . 6 8 Thermal 12 | . 6 6 Explosive 2 | . . 2 Electromagnetic 11 | . . 11 Robot Hit Streak 8 | . 3 8 Robot Miss Streak 3 | . 3 3 Penetration Max . | . . . Secondary Targets . | . . . Shots Hit Robots 23 | . 6 17 Core Hits 9 | . 4 5 Critical Kills . | . . . Critical Parts Destroyed . | . . . Critical Strikes 1 | . 1 . Burn 1 | . 1 . Melee Attacks . | . . . Impact . | . . . Slashing . | . . . Piercing . | . . . Sneak Attacks . | . . . Combat Hostiles . | . . . Follow-up Attacks . | . . . Damage Inflicted 338 | . 73 265 Guns 255 | . 73 182 Cannons . | . . . Explosions 81 | . . 81 Melee . | . . . Ramming 2 | . . 2 Kinetic 112 | . 47 65 Thermal 64 | . 26 38 Explosive 81 | . . 81 Electromagnetic 79 | . . 79 Impact . | . . . Slashing . | . . . Piercing . | . . . Highest Corruption . | . . . Average Corruption . | . . . Corruption Purged . | . . . Corruption Blocked . | . . . Overload Shots . | . . . Overflow Damage 3 | . . 3 Projectiles . | . . . Explosions 3 | . . 3 Melee . | . . . Knockbacks . | . . . Impact . | . . . Kinetic . | . . . Secondary . | . . . Self-Inflicted Damage 17 | . . 17 Shots 1 | . . 1 Rammed . | . . . Targets Rammed 1 | . . 1 Kicked 1 | . . 1 Crushed . | . . . Highest Temperature 54 | . 30 54 Average Temperature 17 | . 13 19 Received Heat Transfer 50 | . 30 20 Siege Activations . | . . . Robots Corrupted . | . . . Combat Hostiles . | . . . Parts Fried . | . . . Impact Corruptions . | . . . Robots Melted . | . . . Combat Hostiles . | . . . Parts Melted . | . . . Heat Transferred 259 | . 148 111 Parts Sabotaged . | . . . Parts Stolen . | . . . Parts Stripped . | . . . Power Chain Reactions . | . . . Alert | -11 -10 -10 ------- Run | Yrd Mat Min Peak Influence 96 | . 94 96 Initial 36 | . . 36 Average 54 | . 32 65 Maximum Alert Level . | . . . Low Security (%) 100 | 100 100 100 Level 1 . | . . . Level 2 . | . . . Level 3 . | . . . Level 4 . | . . . Level 5 . | . . . High Security . | . . . Max Security . | . . . Squads Dispatched 2 | . 2 . Investigation 2 | . 2 . Extermination . | . . . Reinforcement . | . . . Assault . | . . . Garrison . | . . . Intercept . | . . . Searches Triggered . | . . . Construction Impeded . | . . . Haulers Reinforced . | . . . Active Scanning Responses . | . . . Cargo Convoy Interrupts . | . . . Stealth | -11 -10 -10 --------- Run | Yrd Mat Min Distress Signals . | . . . Communications Jammed . | . . . Distress Signals . | . . . Times Spotted 23 | . 8 15 Peak Tracking Total 11 | . 3 11 Tactical Retreats . | . . . Traps | -11 -10 -10 ------- Run | Yrd Mat Min Traps Triggered 1 | . 1 . Indirectly . | . . . Trap Hack Attempts . | . . . Triggered . | . . . Disarmed . | . . . Reprogrammed . | . . . Reused . | . . . Traps Extracted . | . . . Installed . | . . . Triggered . | . . . Machines | -11 -10 -10 ---------- Run | Yrd Mat Min Machines Disabled . | . . . Max in Single Turn . | . . . Machines Repaired . | . . . Machines Dismantled . | . . . Machines Sabotaged . | . . . Overloaded Fab Kills . | . . . Hacking | -11 -10 -10 --------- Run | Yrd Mat Min Machines Accessed 1 | . 1 . Terminals 1 | . 1 . Fabricators . | . . . Repair Stations . | . . . Recycling Units . | . . . Scanalyzers . | . . . Garrison Access . | . . . Total Hacks 2 | . 2 . Successful 1 | . 1 . Failed 1 | . 1 . Catastrophic 1 | . 1 . Database Lockouts . | . . . Manual 2 | . 2 . Terminals 2 | . 2 . Fabricators . | . . . Repair Stations . | . . . Recycling Units . | . . . Scanalyzers . | . . . Garrison Access . | . . . Terminal Hacks . | . . . Fabricator Hacks . | . . . Repair Station Hacks . | . . . Recycling Unit Hacks . | . . . Scanalyzer . | . . . Garrison Access Hacks . | . . . Unauthorized Hacks 1 | . 1 . Terminals 1 | . 1 . Skim 1 | . 1 . Fabricators . | . . . Repair Stations . | . . . Recycling Units . | . . . Scanalyzers . | . . . Garrison Access . | . . . Data Cores Recovered . | . . . Used . | . . . Hacking Detections 1 | . 1 . Full Trace Events 1 | . 1 . Feedback Events . | . . . Feedback Blocked . | . . . Robot Schematics Acquired . | . . . Robots Built . | . . . Authchips . | . . . Time . | . . . Total Robot Build Rating . | . . . Part Schematics Acquired . | . . . Parts Built . | . . . Authchips . | . . . Time . | . . . Total Part Build Rating . | . . . Parts Repaired . | . . . Time . | . . . Parts Recycled . | . . . Recycled Matter . | . . . Retrieved Matter . | . . . Retrieved Components . | . . . Parts Scanalyzed . | . . . Part Schematics Acquired . | . . . Parts Damaged . | . . . Bothacking | -11 -10 -10 ------------ Run | Yrd Mat Min Used RIF Installer . | . . . Robots Hacked . | . . . Non-combat . | . . . Combat . | . . . Robot Hacks Applied . | . . . Relay Couplers Released . | . . . Fabnet Peak Effective % . | . . . Robots Rewired . | . . . Allies Hacked . | . . . Hacks Repelled . | . . . Allies | -11 -10 -10 -------- Run | Yrd Mat Min Total Allies 3 | . . 3 Largest Group 3 | . . 3 Highest-Rated Group 69 | . . 69 Highest-Rated Ally 31 | . . 31 Total Orders . | . . . Ally Attacks 11 | . . 11 Total Damage 188 | . . 188 Kills 2 | . . 2 Allies Corrupted . | . . . Allies Melted . | . . . Intel | -11 -10 -10 ------- Run | Yrd Mat Min Robot Analysis Total . | . . . Derelict Logs Recovered 2 | . . 2 Drone Launches . | . . . Drone Recoveries . | . . . Exploration | -11 -10 -10 ------------- Run | Yrd Mat Min Turns Passed 865 | 3 294 568 Spaces Moved 443 | 3 171 269 Core . | . . . Treads 63 | . . 63 Legs 380 | 3 171 206 Wheels . | . . . Hover . | . . . Flight . | . . . Fastest Speed 120 | 120 120 160 Average Speed 165 | 120 140 182 Slowest Speed 190 | 120 190 190 Overloaded Moves . | . . . Propulsion Burnouts . | . . . Robots Hopped . | . . . Cave-ins Triggered . | . . . Exploration Rate (%) 29 | 2 27 58 Regions Visited 2 Branch Regions 1 Pre-discovered Areas 1 | . . 1 Known Exits Taken . | . . . Unknown Exits Taken 2 | 1 1 . Scrap Searched 1 | . . 1 Spaces Dug . | . . . Terrain Destroyed 16 | . . 16 Melee . | . . . Projectile . | . . . AOE 16 | . . 16 Terrain Rammed . | . . . Walls Destroyed . | . . . Machines Disabled . | . . . Actions | -11 -10 -10 --------- Run | Yrd Mat Min Total 533 | 2 214 317 Wait 55 | . 33 22 Move 441 | 2 170 269 Hop . | . . . Pick Up 2 | . 1 1 Fast Attach 3 | . 2 1 Attach 4 | . . 4 Detach . | . . . Swap . | . . . Drop 2 | . 2 . Fire 25 | . 6 19 Melee . | . . . Ram . | . . . Kick 1 | . . 1 Crush . | . . . Escape Stasis . | . . . Rewire . | . . . Trap . | . . . Miscellaneous . | . . . Route ------- -11/Scrapyard -10/Materials -10/Mines (discovered 3 exits: *Mat x2 / [*Sub]) History --------- Turn | Location | Event 1 | -11/Scrapyard | Discovered new exit (range 3) 4 | -11/Scrapyard | Entered Materials 275 | -10/Materials | Discovered new exit (range 13) 298 | -10/Materials | Entered Mines 301 | -10/Mines | Received a Mining Laser from a helpful Derelict 314 | -10/Mines | Build established: Mutant 326 | -10/Mines | Discovered new exit (range 9) 449 | -10/Mines | Identified exit to Materials 643 | -10/Mines | Learned location of Storage (-7) 671 | -10/Mines | Assembled infested the area 676 | -10/Mines | Assisted by a Guerilla fighting off Assembled 724 | -10/Mines | Core integrity fell below 50% 734 | -10/Mines | Core integrity fell below 20% 745 | -10/Mines | Discovered new exit (range 6) 760 | -10/Mines | Lost 4 parts (2n2w) 866 | -10/Mines | Destroyed by as-45413 with Assembled Heavy Rifle Last Messages --------------- 00766_ U-05 Engineer lays Concrete. 00777_ The unstable cave ceiling collapses. 00777_ U-05 Engineer lays Concrete. 00780_ U-05 Engineer builds a Wall. 00795_ Acquired 44 matter. 00802_ U-05 Engineer lays Concrete. 00804_ U-05 Engineer builds a Wall. 00813_ U-05 Engineer lays Concrete. 00818_ U-05 Engineer builds a Wall. 00822_ U-05 Engineer lays Concrete. 00825_ U-05 Engineer builds a Wall. 00828_ U-05 Engineer lays Concrete. 00831_ U-05 Engineer builds a Wall. 00835_ Destroyed Asb. F-torch. 00835_ as-83272 destroyed. 00839_ U-05 Engineer lays Concrete. 00841_ U-05 Engineer builds a Wall. 00856_ U-05 Engineer lays Concrete. 00860_ U-05 Engineer builds a Wall. 00864_ U-05 Engineer lays Concrete. Map ----- +----------------------------------------------------+ | ????????????????????????????????????????? | | ????????????????????????????????????????? | | ????????????????????????????????????????? | | ????????????????????????????????????????? | | ????????????????????????????????????????? | | ????????????????????????????????????????? | | ??????????????????????????????????###???? | | ?????????????????????????????????# ???? | | ?????????????????????????????????# ???? | | ?????????????????????????????????# #???? | | ????????????????? ??????????????# #???? | | ???????????????##a ?????????????# #???? | | ??????????????## #?????????????# #???? | | ??????????????# ##????????????# #???? | | ??????????????# ##???????????#" #???? | | ??????????????? ###?????#####% #???? | | ???????????????# #?????# # ??? | | ???????????????# #?????# ### # ??? | | ???????????????# #?????# # # # #?? | | ???????????????# ####### # # # #? | | ???????????????# ####### # # # # | | ??????????????## % ## ### # | | ?????????????## # # # | | ?????????????# | ## %%## ####% | | ?????????????# u # # | | ????????????## @ < ### | | ??????????### # ## | | ?????????## ## ### | | ?????????# ###### ## ##?#### # | | ?????????# ##????###### ##?????## ## | | ?????????#####??????????#####???????####? | | ????????????????????????????????????????? | | ????????????????????????????????????????? | | | | | | | | | | | | | | | | | | | | | | | | | | | | | | | | | | | +----------------------------------------------------+ Best States ------------- Heat Dissipation 25 Energy Generation 10 Energy Capacity 125 Matter Stores 300 Matter Capacity 300 Sight Range 16 Terrain Scan Density 10 Armor Coverage 150 Evasion (%) 55 Recoil Reduction 2 Item Schematics ----------------- None Robot Schematics ------------------ None Fabricated ------------ Nothing Alien Tech Used ----------------- None Achievements -------------- None Challenges ------------ None Game ------ Seed MyomerActuatorVibroblade Manual? 0 Play Time 00:11:36 Cumulative 68.3 hours Start 2024.10.22 @ 16:32:18 End 2024.10.22 @ 16:37:42 Sessions 1 Manual Loads 0 Difficulty Rogue Special Mode None Game No. 64 Rogue 46 Adventurer 16 Explorer 2 Win Type - Total 1 Types 1/0/0/0/0/0/0/0/0 Lore% 15 Gallery% 44 Achievement% 38 Wizard Run 0 Options --------- Layout 2 ASCII 0 Keyboard 0 Movement Mouse Keybinds 1 Fullscreen 2 Font 24/Terminus Map View 50x44 Zoom Use 0% Tactical HUD 1 Map Filters NONE Filters NONE Steam X RUN: 5ead7a82-aeba-4c73-ba52-02ede0e51e4a